Cogmind - Beta 15 @@@ ROGUE MODE // 2025.05.15 @ 18:54:03 Player: Fonjavters Result: Destroyed by Piercing Trap Performance ------------- Evolutions (0) 0 Regions Visited (2) 400 Robots Destroyed (10) 50 Value Destroyed (320) 320 Prototype IDs (3) 60 Alien Tech Used (0) 0 Bonus (0) 0 TOTAL SCORE: 830 Bonus ------- None Cogmind --------- Core Integrity 0/250 Matter 300/300 Energy 98/100 System Corruption 0% Temperature Cool (1) Movement Treading (160) Location -10/Subcaves Parts ------- > --- POWER (1) -------- (None) > --- PROPULSION (2) --- Spiked Treads > --- UTILITY (2) ------ Small Storage Unit V3-11A's Pendant > --- WEAPON (2) ------- Barrage Gun > --- INVENTORY (8) ---- Ion Engine Subdweller Power Source Assault Rifle Assault Rifle Subdweller Machine Gun Light Cannon Battle Cannon Peak State ------------ > --- POWER ------------ (None) > --- PROPULSION ------- Spiked Treads > --- UTILITY ---------- Small Storage Unit V3-11A's Pendant > --- WEAPON ----------- Barrage Gun Barrage Gun > --- INVENTORY -------- Ion Engine Subdweller Power Source Assault Rifle Assault Rifle Subdweller Machine Gun Light Cannon Battle Cannon [Rating: 13] Favorites ----------- Power Ion Engine Engine Ion Engine Propulsion Aluminum Leg Treads Spiked Treads Leg Aluminum Leg Utility Small Storage Unit Device V3-11A's Pendant Storage Small Storage Unit Protection Light Armor Plating Weapon Barrage Gun Energy Gun Medium Laser Ballistic Gun Barrage Gun Ballistic Cannon Light Cannon Build | -11 -10 -10 ------- Run | Yrd Mat Sub Slots Evolved . | . . . Power . | . . . Propulsion . | . . . Utility . | . . . Weapon . | . . . Parts Attached 16 | 6 1 9 Power 1 | 1 . . Engine 1 | 1 . . Core . | . . . Reactor . | . . . Propulsion 4 | 2 . 2 Treads 1 | . . 1 Leg 3 | 2 . 1 Wheel . | . . . Hover . | . . . Flight . | . . . Utility 4 | 1 1 2 Device 2 | . . 2 Storage 1 | 1 . . Processor . | . . . Hackware . | . . . Protection 1 | . 1 . Artifact . | . . . Weapon 7 | 2 . 5 Energy Gun 1 | 1 . . Energy Cannon . | . . . Ballistic Gun 5 | 1 . 4 Ballistic Cannon 1 | . . 1 Launcher . | . . . Special Weapon . | . . . Impact Weapon . | . . . Slashing Weapon . | . . . Piercing Weapon . | . . . Special Melee Weapon . | . . . Unidentified Prototypes 1 | . . 1 Parts Lost 9 | . . 9 Power 1 | . . 1 Propulsion 3 | . . 3 Utility 2 | . . 2 Weapon 3 | . . 3 Highest Loss Streak 2 | . . 2 To Critical Strikes . | . . . Average Backups 6 | 1 5 6 Power 1 | . 1 1 Propulsion . | . . . Utility . | . 1 . Weapon 4 | . 3 4 Tool/Special . | . . . Unused Backups 6 | . . 6 Power 2 | . . 2 Propulsion . | . . . Utility . | . . . Weapon 4 | . . 4 Tool/Special . | . . . Average Slot Usage (%) 65 | . 96 54 Engine 5 | . 14 2 Leg 11 | . 28 5 Device 2 | . . 3 Storage 14 | . 14 14 Protection 2 | . 10 . Energy Gun 6 | . 14 3 Ballistic Gun 21 | . 14 24 Peak Build Rating 13 | 6 7 13 Average Rating 7 | 4 6 8 On Entrance 4 | . 6 7 Naked Turns . | . . . Heaviest Build 17 | 14 17 17 Greatest Support 20 | 20 20 20 Greatest Overweight (x) 4 | 1 . 4 Average Overweight (x) 1 | . . 1 Largest Inventory Capacity 8 | 8 8 8 Average Capacity 7 | 6 8 8 Most Carried 8 | 4 7 8 Average Carried 6 | 1 5 6 Final Capacity 8 | 8 8 8 Final Carried 7 | 3 7 7 Class Distribution -------------------- 100% | Mutant Dominant Class ---------------- Mutant | -10/Materials Mutant | -10/Subcaves Resources | -11 -10 -10 ----------- Run | Yrd Mat Sub Matter Collected 548 | 183 119 246 Remotely . | . . . Salvage Created 408 | 16 155 237 Parts 21 | 3 6 12 Haulers Intercepted . | . . . Recyclers Shooed . | . . . Parts Field Recycled . | . . . Retrieved Matter . | . . . Parts Self-Destructed . | . . . Prevented . | . . . Kills | -11 -10 -10 ------- Run | Yrd Mat Sub Combat Hostiles Destroyed 7 | . 2 5 Guns 7 | . 2 5 Classes Destroyed 4 | 1 2 1 Tunneler 1 | 1 . . Watcher 2 | . 2 . Grunt 2 | . 2 . Subdweller 5 | . . 5 Best Kill Streak 2 | 1 2 2 Combat Bots Only 2 | . 2 2 Max Kills in Single Turn 1 | 1 1 1 Gunslinging . | . . . Exploded . | . . . Melee . | . . . Uniques/NPCs Destroyed . | . . . Combat | -11 -10 -10 -------- Run | Yrd Mat Sub Hostile Shots Fired 74 | . 13 61 Missed 14 | . 3 11 Hits 60 | . 10 50 Projectile 60 | . 10 50 Critical Strikes 1 | . . 1 Damage Taken 1351 | . 134 1217 Core 259 | . 32 227 Absorbed by Shields . | . . . Core Remaining (%) 100 | 100 . . Volleys Fired 56 | 2 10 44 Largest 2 | 2 2 2 Hottest 80 | 70 70 80 Shots Fired 108 | 4 20 84 Gun 105 | 4 20 81 Cannon 3 | . . 3 Launcher . | . . . Special . | . . . Kinetic 72 | 2 10 60 Thermal 36 | 2 10 24 Explosive . | . . . Electromagnetic . | . . . Robot Hit Streak 23 | 2 7 23 Robot Miss Streak 1 | 1 1 1 Penetration Max . | . . . Secondary Targets . | . . . Shots Hit Robots 59 | 2 15 42 Core Hits 19 | 1 7 11 Critical Kills . | . . . Critical Parts Destroyed . | . . . Critical Strikes 3 | . 3 . Burn 3 | . 3 . Melee Attacks . | . . . Impact . | . . . Slashing . | . . . Piercing . | . . . Sneak Attacks . | . . . Combat Hostiles . | . . . Follow-up Attacks . | . . . Damage Inflicted 839 | 27 196 616 Guns 831 | 27 188 616 Cannons . | . . . Explosions . | . . . Melee . | . . . Ramming 8 | . 8 . Kinetic 583 | 14 78 491 Thermal 248 | 13 110 125 Explosive . | . . . Electromagnetic . | . . . Impact . | . . . Slashing . | . . . Piercing . | . . . Highest Corruption . | . . . Average Corruption . | . . . Corruption Purged . | . . . Corruption Blocked . | . . . Overload Shots . | . . . Overflow Damage . | . . . Projectiles . | . . . Explosions . | . . . Melee . | . . . Knockbacks . | . . . Impact . | . . . Kinetic . | . . . Secondary . | . . . Self-Inflicted Damage . | . . . Shots . | . . . Rammed . | . . . Targets Rammed 1 | . 1 . Kicked 1 | . 1 . Crushed . | . . . Highest Temperature 244 | 18 186 244 Average Temperature 76 | 10 73 121 Received Heat Transfer 568 | . 81 487 Siege Activations . | . . . Martial Activations . | . . . Shielding Activations . | . . . Robots Disrupted . | . . . Combat Hostiles . | . . . Robots Corrupted . | . . . Combat Hostiles . | . . . Parts Fried . | . . . Impact Corruptions . | . . . Robots Melted . | . . . Combat Hostiles . | . . . Parts Melted 1 | . 1 . Heat Transferred 962 | 37 555 370 Parts Sabotaged . | . . . Parts Stolen . | . . . Parts Stripped . | . . . Power Chain Reactions . | . . . Alert | -11 -10 -10 ------- Run | Yrd Mat Sub Maximum Alert Level . | . . . Low Security (%) 100 | 100 100 . Level 1 . | . . . Level 2 . | . . . Level 3 . | . . . Level 4 . | . . . Level 5 . | . . . High Security . | . . . Max Security . | . . . Peak Influence 58 | 5 58 . Initial 3 | . 3 . Average 8 | . 9 . Influence Increases 137 | 5 132 . Destroy 0b10 Robot/C 40 | . 40 . Destroy 0b10 Robot/NC 15 | 5 10 . Destroy Leader 14 | . 14 . Successful Hack 68 | . 68 . Influence Decreases 137 | . 119 18 Entered New Map 12 | . 2 10 Time Decay 125 | . 117 8 Squads Dispatched . | . . . Investigation . | . . . Extermination . | . . . Reinforcement . | . . . Assault . | . . . Garrison . | . . . Intercept . | . . . Searches Triggered . | . . . Construction Impeded . | . . . Haulers Reinforced . | . . . Active Scanning Responses . | . . . Cargo Convoy Interrupts . | . . . Stealth | -11 -10 -10 --------- Run | Yrd Mat Sub Distress Signals 1 | . 1 . Communications Jammed . | . . . Distress Signals . | . . . Times Spotted 13 | . 5 8 Peak Tracking Total 3 | . 3 2 Tactical Retreats . | . . . Traps | -11 -10 -10 ------- Run | Yrd Mat Sub Traps Triggered 2 | . . 2 Indirectly . | . . . Trap Hack Attempts . | . . . Triggered . | . . . Disarmed . | . . . Reprogrammed . | . . . Reused . | . . . Traps Extracted . | . . . Installed . | . . . Triggered . | . . . Machines | -11 -10 -10 ---------- Run | Yrd Mat Sub Machines Disabled 1 | . 1 . Max in Single Turn 1 | . 1 . Machines Repaired . | . . . Machines Dismantled . | . . . Machines Sabotaged . | . . . Overloaded Fab Kills . | . . . Hacking | -11 -10 -10 --------- Run | Yrd Mat Sub Machines Accessed 7 | . 7 . Terminals 6 | . 6 . Fabricators . | . . . Repair Stations . | . . . Recycling Units 1 | . 1 . Scanalyzers . | . . . Garrison Access . | . . . Total Hacks 22 | . 22 . Successful 14 | . 14 . Failed 8 | . 8 . Catastrophic . | . . . Database Lockouts . | . . . Manual 17 | . 17 . Terminals 21 | . 21 . Fabricators . | . . . Repair Stations . | . . . Recycling Units 1 | . 1 . Scanalyzers . | . . . Garrison Access . | . . . Terminal Hacks 3 | . 3 . Prototype ID Bank 1 | . 1 . Locate Traps 1 | . 1 . Hauler Manifests 1 | . 1 . Fabricator Hacks . | . . . Repair Station Hacks . | . . . Recycling Unit Hacks 1 | . 1 . Report Inventory 1 | . 1 . Scanalyzer . | . . . Garrison Access Hacks . | . . . Unauthorized Hacks 9 | . 9 . Terminals 9 | . 9 . Assimilate 1 | . 1 . Botnet 2 | . 2 . Skim 6 | . 6 . Fabricators . | . . . Repair Stations . | . . . Recycling Units . | . . . Scanalyzers . | . . . Garrison Access . | . . . Data Cores Recovered . | . . . Used . | . . . Hacking Detections 4 | . 4 . Full Trace Events . | . . . Feedback Events . | . . . Feedback Blocked . | . . . Robot Schematics Acquired . | . . . Robots Built . | . . . Authchips . | . . . Time . | . . . Total Robot Build Rating . | . . . Part Schematics Acquired . | . . . Parts Built . | . . . Authchips . | . . . Time . | . . . Total Part Build Rating . | . . . Parts Repaired . | . . . Time . | . . . Parts Recycled . | . . . Recycled Matter . | . . . Retrieved Matter . | . . . Retrieved Components . | . . . Parts Scanalyzed . | . . . Part Schematics Acquired . | . . . Parts Damaged . | . . . Bothacking | -11 -10 -10 ------------ Run | Yrd Mat Sub Used RIF Installer . | . . . Robots Hacked . | . . . Non-combat . | . . . Combat . | . . . Robot Hacks Applied . | . . . Relay Couplers Released . | . . . Fabnet Peak Effective % . | . . . Robots Rewired . | . . . Allies Hacked . | . . . Hacks Repelled . | . . . Allies | -11 -10 -10 -------- Run | Yrd Mat Sub Total Allies 4 | . . 4 Largest Group 3 | . . 3 Highest-Rated Group 57 | . . 57 Highest-Rated Ally 19 | . . 19 Total Orders . | . . . Ally Attacks 2 | . . 2 Total Damage . | . . . Kills . | . . . Allies Corrupted . | . . . Allies Melted . | . . . Intel | -11 -10 -10 ------- Run | Yrd Mat Sub Active Infowar (turns) 146 | . . 146 Seismic 146 | . . 146 Robot Analysis Total . | . . . Derelict Logs Recovered 2 | . . 2 Drone Launches . | . . . Drone Recoveries . | . . . Exploration | -11 -10 -10 ------------- Run | Yrd Mat Sub Turns Passed 2572 | 69 636 1867 Spaces Moved 1240 | 45 279 916 Core 584 | 12 . 572 Treads 90 | . . 90 Legs 566 | 33 279 254 Wheels . | . . . Hover . | . . . Flight . | . . . Fastest Speed 50 | 50 120 120 Average Speed 163 | 108 120 179 Slowest Speed 250 | 120 120 250 Overloaded Moves . | . . . Propulsion Burnouts . | . . . Robots Hopped . | . . . Potential Cave-ins . | . . . Cave-ins Triggered . | . . . Exploration Rate (%) 38 | 4 54 56 Regions Visited 2 Branch Regions 1 Pre-discovered Areas 1 | . . 1 Known Exits Taken 1 | . 1 . Unknown Exits Taken 1 | 1 . . Scrap Searched 4 | . . 4 Spaces Dug . | . . . Terrain Destroyed . | . . . Melee . | . . . Projectile . | . . . AOE . | . . . Terrain Rammed . | . . . Walls Destroyed . | . . . Machines Disabled . | . . . Actions | -11 -10 -10 --------- Run | Yrd Mat Sub Total 1682 | 61 560 1061 Wait 348 | . 265 83 Move 1238 | 44 278 916 Hop . | . . . Pick Up 21 | 9 5 7 Fast Attach . | . . . Attach 13 | 6 1 6 Detach . | . . . Swap 3 | . . 3 Drop 2 | . . 2 Fire 56 | 2 10 44 Melee . | . . . Ram . | . . . Kick 1 | . 1 . Crush . | . . . Escape Stasis . | . . . Rewire . | . . . Trap . | . . . Miscellaneous . | . . . Route ------- -11/Scrapyard -10/Materials (discovered 6 exits: *Mat x3 / *Min x2 / *Sub) -10/Subcaves History --------- Turn | Location | Event 10 | -11/Scrapyard | Discovered new exit (range 15) 70 | -11/Scrapyard | Entered Materials 166 | -10/Materials | Discovered new exit (range 15) 272 | -10/Materials | Discovered new exit (range 4) 314 | -10/Materials | Build established: Mutant 327 | -10/Materials | Discovered new exit (range 7) 367 | -10/Materials | Learned 4 Subcaves zone layouts 495 | -10/Materials | Identified exit to Subcaves 495 | -10/Materials | Identified exit to Materials 542 | -10/Materials | Identified exit to Mines 578 | -10/Materials | Learned Storage garrison access intel 603 | -10/Materials | Learned location of 2 exits from Materials 640 | -10/Materials | Loaded intel: 2 recycling unit locations 706 | -10/Materials | Entered Subcaves 707 | -10/Subcaves | Approached by a straggling Scientist 780 | -10/Subcaves | A swath of the cavern ceiling suddenly collapsed 1015 | -10/Subcaves | Learned location of 1 exit from Materials 1039 | -10/Subcaves | Shifting Twisted Machinery released Barrage Gun 1065 | -10/Subcaves | Shifting Twisted Machinery released Battle Rifle 1121 | -10/Subcaves | Shifting Twisted Machinery released Shrapnel Trap 1136 | -10/Subcaves | Shifting Twisted Machinery released Barrage Gun 1195 | -10/Subcaves | Core integrity fell below 50% 1204 | -10/Subcaves | Core integrity fell below 20% 1726 | -10/Subcaves | Learned location of Zion (-6) 1726 | -10/Subcaves | Met a Zionite searching for "candidates" 2240 | -10/Subcaves | Learned Materials security intel 2284 | -10/Subcaves | Visited triangular shrine 2296 | -10/Subcaves | Found Prototype Device 2297 | -10/Subcaves | Identified V3-11A's Pendant 2302 | -10/Subcaves | Befriended Subdweller 2402 | -10/Subcaves | Befriended Subdweller 2487 | -10/Subcaves | Befriended Subdweller 2497 | -10/Subcaves | Befriended Subdweller 2573 | -10/Subcaves | Destroyed by Piercing Trap Last Messages --------------- 02416_ Found 53 Matter. 02420_ Acquired Spk. Treads. 02422_ Acquired 10 matter. 02487_ 1F-0QY(R): "SUBSUB?" 02493_ 1F-0QY(R) destroyed. 02497_ VV-JO9(R): "SUBTASTIC!" 02533_ Acquired 16 matter. 02551_ 3Y-UWV(R) triggered Shrapnel Trap. 02551_ An expanding cloud of shrapnel blasts out in all directions. 02551_ 3Y-UWV(R) destroyed. 02551_ VV-JO9(R) destroyed. 02568_ Triggered Piercing Trap. 02568_ Spikes shoot up from the floor. 02568_ Critical hit (Impale). 02573_ Triggered Piercing Trap. 02573_ Spikes shoot up from the floor. 02573_ Critical hit (Impale). 02573_ Barrage Gun destroyed. 02573_ Critical hit (Impale). Map ----- +----------------------------------------------------+ | ## ?#### #### #????# ##????????????????????? | | #?# ## #" " ## #?????# #????????????????????? | | ???# # #?????## ######???????????????? | | ???## #????## ## ##??????????????? | | ???## ###### ### ##?????????????? | | #### ## ## #?## #?????????????? | | # #### ##### ##?????????????? | | ## ## ## ### #??????????????? | | ## ########## ##?????????????? | | ### # # #?# #### #?????????????? | | ??#### ### #?# ## ## #?????????????? | | ?????# #?# #### # ^ ######?????????????? | | ?????## ## # ## #??????????????????? | | ?????? # ## ### ####???????????????? | | ?????# ##### ! ## ##??????????????? | | ?????## ??## *[&& ^ #??????????????? | | ??????# #??# &=& ] ^ ##?????????????? | | ?????? ??# " "%&*& #?????????????? | | ?????# ??#" """"& ###??????????????? | | ????##"?######" #"#""" ####????????????????? | | ?? ##""???# *%& ####### ##???????????????????? | | ?"""""""?## =&""#????## #????????????????????? | | ?""" """## ## "##????# #????????????????????? | | ?????#" ## """"#????# ##????????????????????? | | ?????#"" """ ##??### #?????????????????????? | | ????# " "" "#??# @#?????????????????????? | | ????#" """ #?## ###???????????????????? | | ????#""""##" #?## #???????????????????? | | ????########## #####??#### ##???????????????????? | | ??????????????##??????????##????????????????????? | | ????????????????????????????????????????????????? | | ????????????????????????????????????????????????? | | ????????????????????????????????????????????????? | | ????????????????????????????????????????????????? | | ????????????????????????????????????????????????? | | ????????????????????????????????????????????????? | | ????????????????????????????????????????????????? | | ????????????????????????????????????????????????? | | ????????????????????????????????????????????????? | | ????????????????????????????????????????????????? | | ????????????????????????????????????????????????? | | ????????????????????????????????????????????????? | | ????????????????????????????????????????????????? | | ????????????????????????????????????????????????? | | | | | | | | | | | | | +----------------------------------------------------+ Best States ------------- Heat Dissipation 25 Energy Generation 10 Energy Capacity 250 Matter Stores 300 Matter Capacity 300 Sight Range 16 Terrain Scan Density 10 Armor Coverage 150 Evasion (%) 55 Recoil Reduction 1 Item Schematics ----------------- None Robot Schematics ------------------ None Fabricated ------------ Nothing Repaired ---------- Nothing Alien Tech Used ----------------- None Achievements -------------- None Challenges ------------ None Game ------ Seed SpacefoldSubatomicClaymores Manual? 0 Play Time 00:13:38 Cumulative 27.3 hours Start 2025.05.15 @ 18:41:46 End 2025.05.15 @ 18:54:03 Sessions 1 Manual Loads 0 Difficulty Rogue Special Mode None Game No. 40 Rogue 40 Adventurer 0 Explorer 0 Win Type - Total 1 Types 1/0/0/0/0/0/0/0/0/0 Lore% 31 Gallery% 24 Achievement% 31 Wizard Run 0 Options --------- Layout 1 ASCII 0 Keyboard 0 Movement Mouse Keybinds 0 Fullscreen 1 Font 24/Smallcaps Map View 50x35 Zoom Use 0% Tactical HUD 1 Map Filters NONE Filters NONE Steam 1 RUN: a3025c39-71ba-48b0-8cfb-e00df8d25a29